fUSD/lending_fUSD_20250629
["ID","MTS","AMOUNT","RATE_DAILY","PERIOD"]
[368446533,1751181057825,-936.2,0.00028277,3]
[368446534,1751181057835,-490.0,0.00028277,3]
[368446535,1751181057845,-490.0,0.00028277,3]
[368446536,1751181057855,-1388.66,0.00028277,3]
[368446537,1751181057865,-578.37,0.00028277,3]
[368446538,1751181057875,-490.0,0.00028277,3]
[368446539,1751181057885,-490.0,0.00028277,3]
[368446540,1751181057895,-490.0,0.00028277,3]
[368446541,1751181057905,-490.0,0.00028277,3]
[368446542,1751181057915,-1588.38,0.00028277,3]
[368446543,1751181057925,-490.0,0.00028277,3]
[368446544,1751181057935,-490.0,0.00028277,3]
[368446545,1751181057944,-490.0,0.00028277,3]
[368446546,1751181057954,-490.0,0.00028277,3]
[368446547,1751181057965,-1544.75,0.00028277,3]
[368446548,1751181057975,-490.0,0.00028277,3]
[368446549,1751181057985,-490.0,0.00028277,3]
[368446550,1751181057995,-490.0,0.00028277,3]
[368446551,1751181058005,-1423.04,0.00028277,3]
[368446552,1751181058015,-490.0,0.00028277,3]
[368446553,1751181058025,-490.0,0.00028277,3]
[368446554,1751181058035,-490.0,0.00028277,3]
[368446555,1751181058045,-490.0,0.00028277,3]
[368446556,1751181058055,-490.0,0.00028277,3]
[368446557,1751181058064,-490.0,0.00028277,3]
[368446558,1751181058074,-490.0,0.00028277,3]
[368446559,1751181058084,-490.0,0.00028277,3]
[368446560,1751181058094,-490.0,0.00028277,3]
[368446561,1751181058103,-490.0,0.00028277,3]
[368446562,1751181058113,-619.04,0.00028277,3]
[368446563,1751181058123,-490.0,0.00028277,3]
[368446564,1751181058132,-490.0,0.00028277,3]
[368446565,1751181058142,-388.31745591,0.00028277,3]
[368446566,1751181058151,-490.0,0.00028277,3]
[368446567,1751181058161,-490.0,0.00028277,3]
[368446568,1751181058171,-490.0,0.00028277,3]
[368446569,1751181058180,-654.86,0.00028277,3]
[368446570,1751181058190,-490.0,0.00028277,3]
[368446571,1751181058200,-403.18102032,0.00028277,3]
[368446572,1751181058210,-490.0,0.00028277,3]
[368446573,1751181058220,-664.59,0.00028277,3]
[368446574,1751181058230,-490.0,0.00028277,3]
[368446575,1751181058239,-490.0,0.00028277,3]
[368446576,1751181058249,-490.0,0.00028277,3]
[368446577,1751181058259,-490.0,0.00028277,3]
[368446578,1751181058268,-490.0,0.00028277,3]
[368446579,1751181058278,-490.0,0.00028277,3]
[368446580,1751181058288,-490.0,0.00028277,3]
[368446581,1751181058298,-839.16,0.00028277,3]
[368446582,1751181058307,-514.80993758,0.00028277,3]
[368446583,1751181058317,-493.91157025,0.00028277,3]
[368446584,1751181058327,-490.0,0.00028277,3]
[368446585,1751181058336,-490.0,0.00028277,3]
[368446586,1751181058347,-490.0,0.00028277,3]
[368446587,1751181058361,-490.0,0.00028277,3]
[368446588,1751181058371,-445.37220318,0.00028277,3]
[368446589,1751181058381,-490.0,0.00028277,3]
[368446590,1751181058391,-490.0,0.00028277,3]
[368446591,1751181058401,-724.74,0.00028277,3]
[368446592,1751181058411,-1070.97,0.00028277,3]
[368446593,1751181058421,-490.0,0.00028277,3]
[368446594,1751181058431,-490.0,0.00028277,3]
[368446595,1751181058441,-490.0,0.00028277,3]
[368446596,1751181058451,-700.11,0.00028277,3]
[368446597,1751181058461,-3031.19,0.00028277,3]
[368446598,1751181058471,-490.0,0.00028277,3]
[368446599,1751181058481,-490.0,0.00028277,3]
[368446600,1751181058490,-3018.42,0.00028277,3]
[368446601,1751181058500,-490.0,0.00028277,3]
[368446602,1751181058510,-1887.96,0.00028277,3]
[368446603,1751181058519,-490.0,0.00028277,3]
[368446604,1751181058529,-490.0,0.00028277,3]
[368446605,1751181058539,-490.0,0.00028277,3]
[368446606,1751181058549,-521.61,0.00028277,3]
[368446607,1751181058559,-2164.49,0.00028277,3]
[368446608,1751181058568,-490.0,0.00028277,3]
[368446609,1751181058578,-490.0,0.00028277,3]
[368446610,1751181058588,-490.0,0.00028277,3]
[368446611,1751181058598,-490.0,0.00028277,3]
[368446612,1751181058607,-2793.81,0.00028277,3]
[368446613,1751181058617,-490.0,0.00028277,3]
[368446614,1751181058627,-490.0,0.00028277,3]
[368446615,1751181058636,-490.0,0.00028277,3]
[368446616,1751181058646,-490.0,0.00028277,3]
[368446617,1751181058656,-490.0,0.00028277,3]
[368446618,1751181058666,-1102.9,0.00028277,3]
[368446619,1751181058676,-490.0,0.00028277,3]
[368446620,1751181058686,-372.70381971,0.00028277,3]
[368446621,1751181058696,-1020.61,0.00028277,3]
[368446622,1751181058706,-490.0,0.00028277,3]
[368446623,1751181058715,-490.0,0.00028277,3]
[368446624,1751181058725,-547.03,0.00028277,3]
[368446625,1751181058735,-490.0,0.00028277,3]
[368446626,1751181058745,-1495.57,0.00028277,3]
[368446627,1751181058755,-4316.74,0.00028277,3]
[368446628,1751181058764,-490.0,0.00028277,3]
[368446629,1751181058774,-490.0,0.00028277,3]
[368446630,1751181058785,-2192.05,0.00028277,3]
[368446631,1751181058794,-623.46,0.00028277,3]
[368446632,1751181058805,-490.0,0.00028277,3]
[368446633,1751181058815,-490.0,0.00028277,3]
[368446634,1751181058825,-3176.46,0.00028277,3]
[368446635,1751181058835,-2370.99,0.00028277,3]
[368446636,1751181058846,-551.2,0.00028277,3]
[368446637,1751181058856,-508.05739887,0.00028277,3]
[368446638,1751181058866,-490.0,0.00028277,3]
[368446639,1751181058876,-490.0,0.00028277,3]
[368446640,1751181058886,-710.18,0.00028277,3]
[368446641,1751181058895,-4889.56,0.00028277,3]
[368446642,1751181058905,-1001.86,0.00028277,3]
[368446643,1751181058916,-490.0,0.00028277,3]
[368446644,1751181058925,-490.0,0.00028277,3]
[368446645,1751181058937,-4783.71,0.00028277,3]
[368446646,1751181058947,-490.0,0.00028277,3]
[368446647,1751181058956,-490.0,0.00028277,3]
[368446648,1751181058966,-2327.17,0.00028277,3]
[368446649,1751181058976,-490.0,0.00028277,3]
[368446650,1751181058986,-1207.77,0.00028277,3]
[368446651,1751181058996,-2329.6,0.00028277,3]
[368446652,1751181059007,-490.0,0.00028277,3]
[368446653,1751181059018,-3126.47,0.00028277,3]
[368446654,1751181059028,-1813.07,0.00028277,3]
[368446655,1751181059038,-490.0,0.00028277,3]
[368446656,1751181059048,-1724.24,0.00028277,3]
[368446657,1751181059058,-2630.42,0.00028277,3]
[368446658,1751181059069,-490.0,0.00028277,3]
[368446659,1751181059079,-490.0,0.00028277,3]
[368446660,1751181059088,-490.0,0.00028277,3]
[368446661,1751181059098,-490.0,0.00028277,3]
[368446662,1751181059108,-490.0,0.00028277,3]
[368446663,1751181059118,-702.81,0.00028277,3]
[368446664,1751181059434,-705.02,0.00028277,3]
[368446665,1751181059443,-4184.39,0.00028277,3]
[368446666,1751181059452,-490.0,0.00028277,3]
[368446667,1751181059462,-490.0,0.00028277,3]
[368446668,1751181059471,-490.0,0.00028277,3]
[368446669,1751181059481,-4515.26,0.00028277,3]
[368446670,1751181059490,-490.0,0.00028277,3]
[368446671,1751181059499,-490.0,0.00028277,3]
[368446672,1751181059509,-490.0,0.00028277,3]
[368446673,1751181059518,-490.0,0.00028277,3]
[368446674,1751181059528,-490.0,0.00028277,3]
[368446675,1751181059537,-490.0,0.00028277,3]
[368446676,1751181059546,-2193.92,0.00028277,3]
[368446677,1751181059555,-5901.61,0.00028277,3]
[368446678,1751181059565,-805.14,0.00028277,3]
[368446679,1751181059575,-490.0,0.00028277,3]
[368446680,1751181059584,-490.0,0.00028277,3]
[368446681,1751181059593,-534.18,0.00028277,3]
[368446682,1751181059603,-1256.76,0.00028277,3]
[368446683,1751181059612,-490.0,0.00028277,3]
[368446684,1751181059621,-490.0,0.00028277,3]
[368446685,1751181059631,-490.0,0.00028277,3]
[368446686,1751181059640,-1430.48,0.00028277,3]
[368446687,1751181059650,-7371.36,0.00028277,3]
[368446688,1751181059660,-490.0,0.00028277,3]
[368446689,1751181059669,-490.0,0.00028277,3]
[368446690,1751181059678,-3913.37,0.00028277,3]
[368446691,1751181059687,-490.0,0.00028277,3]
[368446692,1751181059697,-490.0,0.00028277,3]
[368446693,1751181059706,-1295.18,0.00028277,3]
[368446694,1751181059715,-490.0,0.00028277,3]
[368446695,1751181059724,-490.0,0.00028277,3]
[368446696,1751181059733,-628.45,0.00028277,3]
[368446697,1751181059743,-495.7195587,0.00028277,3]
[368446698,1751181059753,-604.51,0.00028277,3]
[368446699,1751181059762,-476.85905077,0.00028277,3]
[368446700,1751181059772,-1438.03,0.00028277,3]
[368446701,1751181059781,-490.0,0.00028277,3]
[368446702,1751181059791,-753.59,0.00028277,3]
[368446703,1751181059800,-415.49815509,0.00028277,3]
[368446704,1751181059810,-2631.78,0.00028277,3]
[368446705,1751181059820,-490.0,0.00028277,3]
[368446706,1751181059830,-490.0,0.00028277,3]
[368446707,1751181059840,-4823.83546225,0.00028281,2]
[368446708,1751181059849,-490.0,0.00028287,3]
[368446709,1751181059859,-206.7049461,0.00028287,3]
[368446710,1751181059868,-490.0,0.00028287,3]
[368446711,1751181059878,-490.0,0.00028287,3]
[368446712,1751181059888,-490.0,0.00028287,3]
[368446713,1751181059898,-491.42415589,0.00028287,3]
[368446714,1751181059907,-490.0,0.00028287,3]
[368446715,1751181059916,-627.86,0.00028287,3]
[368446716,1751181059926,-601.7,0.00028287,3]
[368446717,1751181059935,-490.0,0.00028287,3]
[368446718,1751181059945,-490.0,0.00028287,3]
[368446719,1751181059955,-490.0,0.00028287,3]
[368446720,1751181059964,-490.0,0.00028287,3]
[368446721,1751181059974,-601.34,0.00028287,3]
[368446722,1751181059983,-560.27,0.00028287,3]
[368446723,1751181059993,-505.41,0.00028287,3]
[368446724,1751181060002,-505.41,0.00028287,3]
[368446725,1751181060011,-963.23,0.00028287,3]
[368446726,1751181060021,-610.53,0.00028287,3]
[368446727,1751181060030,-490.0,0.00028287,3]
[368446728,1751181060039,-490.0,0.00028287,3]
[368446729,1751181060049,-490.0,0.00028287,3]
[368446730,1751181060059,-490.0,0.00028287,3]
[368446731,1751181060069,-490.0,0.00028287,3]
[368446732,1751181060079,-490.0,0.00028287,3]
[368446733,1751181060088,-490.0,0.00028287,3]
[368446734,1751181060097,-490.0,0.00028287,3]
[368446735,1751181060107,-631.25,0.00028287,3]
[368446736,1751181060116,-494.75788022,0.00028287,3]
[368446737,1751181060126,-490.0,0.00028287,3]
[368446738,1751181060135,-490.0,0.00028287,3]
[368446739,1751181060144,-521.25,0.00028287,3]
[368446740,1751181060153,-1247.94,0.00028287,3]
[368446741,1751181060162,-774.03,0.00028287,3]
[368446742,1751181060171,-579.21,0.00028287,3]
[368446743,1751181060181,-1844.3,0.00028287,3]
[368446744,1751181060190,-1098.84,0.00028287,3]
[368446745,1751181060199,-703.38,0.00028287,3]
[368446746,1751181060207,-490.0,0.00028287,3]
[368446747,1751181060217,-1619.05,0.00028287,3]
[368446748,1751181060226,-704.09,0.00028287,3]
[368446749,1751181060235,-576.17,0.00028287,3]
[368446750,1751181060245,-490.0,0.00028287,3]
[368446751,1751181060255,-1282.13,0.00028287,3]
[368446752,1751181060265,-587.94,0.00028287,3]
[368446753,1751181060274,-1856.98,0.00028287,3]
[368446754,1751181060284,-490.0,0.00028287,3]
[368446755,1751181060293,-490.0,0.00028287,3]
[368446756,1751181060303,-752.61,0.00028287,3]
[368446757,1751181060312,-1324.25,0.00028287,3]
[368446758,1751181060322,-1433.73,0.00028287,3]
[368446759,1751181060332,-490.0,0.00028287,3]
[368446760,1751181060342,-923.41,0.00028287,3]
[368446761,1751181060353,-490.0,0.00028287,3]
[368446762,1751181060363,-490.0,0.00028287,3]
[368446763,1751181060372,-490.0,0.00028287,3]
[368446764,1751181060381,-1834.32,0.00028287,3]
[368446765,1751181060391,-490.0,0.00028287,3]
[368446766,1751181060402,-490.0,0.00028287,3]
[368446767,1751181060411,-956.25,0.00028287,3]
[368446768,1751181060420,-587.8,0.00028287,3]
[368446769,1751181060430,-1249.23,0.00028287,3]
[368446770,1751181060440,-490.0,0.00028287,3]
[368446771,1751181060450,-1080.93,0.00028287,3]
[368446772,1751181060460,-490.0,0.00028287,3]
[368446773,1751181060469,-490.0,0.00028287,3]
[368446774,1751181060479,-3056.96,0.00028287,3]
[368446775,1751181060488,-490.0,0.00028287,3]
[368446776,1751181060497,-1169.42,0.00028287,3]
[368446777,1751181060506,-490.0,0.00028287,3]
[368446778,1751181060516,-490.0,0.00028287,3]
[368446779,1751181060525,-490.0,0.00028287,3]
[368446780,1751181060535,-520.25,0.00028287,3]
[368446781,1751181060544,-490.0,0.00028287,3]
[368446782,1751181060553,-490.0,0.00028287,3]
[368446783,1751181060562,-800.46,0.00028287,3]
[368446784,1751181060571,-628.89,0.00028287,3]
[368446785,1751181060580,-2325.47,0.00028287,3]
[368446786,1751181060589,-490.0,0.00028287,3]
[368446787,1751181060599,-490.0,0.00028287,3]
[368446788,1751181060609,-1450.83,0.00028287,3]
[368446789,1751181060619,-490.0,0.00028287,3]
[368446790,1751181060629,-1281.9,0.00028287,3]
[368446791,1751181060639,-653.02,0.00028287,3]
[368446792,1751181060648,-490.0,0.00028287,3]
[368446793,1751181060658,-1252.8,0.00028287,3]
[368446794,1751181060668,-1772.8,0.00028287,3]
[368446795,1751181060677,-490.0,0.00028287,3]
[368446796,1751181060687,-490.0,0.00028287,3]
[368446797,1751181060696,-490.0,0.00028287,3]
[368446798,1751181060706,-602.3,0.00028287,3]
[368446799,1751181060716,-1242.32,0.00028287,3]
[368446800,1751181060726,-962.95,0.00028287,3]
[368446801,1751181060735,-884.17,0.00028287,3]
[368446802,1751181060745,-515.45,0.00028287,3]
[368446803,1751181060755,-490.0,0.00028287,3]
[368446804,1751181060765,-1214.61,0.00028287,3]
[368446805,1751181060775,-859.53,0.00028287,3]
[368446806,1751181060785,-490.0,0.00028287,3]
[368446807,1751181060796,-606.52,0.00028287,3]
[368446808,1751181060808,-1246.58,0.00028287,3]
[368446809,1751181060817,-490.0,0.00028287,3]
[368446810,1751181060828,-2444.02,0.00028287,3]
[368446811,1751181060838,-780.95,0.00028287,3]
[368446812,1751181060847,-490.0,0.00028287,3]
[368446813,1751181060857,-490.0,0.00028287,3]
[368446814,1751181060867,-1641.24,0.00028287,3]
[368446815,1751181060877,-490.0,0.00028287,3]
[368446816,1751181060887,-490.0,0.00028287,3]
[368446817,1751181060896,-490.0,0.00028287,3]
[368446818,1751181060906,-490.0,0.00028287,3]
[368446819,1751181060915,-490.0,0.00028287,3]
[368446820,1751181060925,-490.0,0.00028287,3]
[368446821,1751181060934,-490.0,0.00028287,3]
[368446822,1751181060944,-1346.0,0.00028287,3]
[368446823,1751181060954,-490.0,0.00028287,3]
[368446824,1751181060963,-490.0,0.00028287,3]
[368446825,1751181060973,-490.0,0.00028287,3]
[368446826,1751181060982,-555.97,0.00028287,3]
[368446827,1751181060992,-490.0,0.00028287,3]
[368446828,1751181061001,-490.0,0.00028287,3]
[368446829,1751181061011,-641.36,0.00028287,3]
[368446830,1751181061020,-490.0,0.00028287,3]
[368446831,1751181061029,-2440.09,0.00028287,3]
[368446832,1751181061039,-690.65,0.00028287,3]
[368446833,1751181061048,-500.0,0.00028288,2]
[368446834,1751181061059,-251.34449453,0.00028288,2]
[368446835,1751181061068,-150.0,0.00028288,2]
[368446836,1751181061077,-500.0,0.00028288,2]
[368446837,1751181061087,-500.0,0.00028288,2]
[368446838,1751181061097,-500.0,0.00028288,3]
[368446839,1751181061106,-490.0,0.00028288,3]
[368446840,1751181061116,-490.0,0.00028288,3]
[368446841,1751181061125,-490.0,0.00028288,3]
[368446842,1751181061134,-490.0,0.00028288,3]
[368446843,1751181061144,-740.09,0.00028288,3]
[368446844,1751181061153,-490.0,0.00028288,3]
[368446845,1751181061162,-490.0,0.00028288,3]
[368446846,1751181061171,-490.0,0.00028288,3]
[368446847,1751181061181,-1656.61,0.00028288,3]
[368446848,1751181061190,-1452.13,0.00028288,3]
[368446849,1751181061199,-1393.23,0.00028288,3]
[368446850,1751181061208,-1124.39,0.00028288,3]
[368446851,1751181061217,-3477.47,0.00028288,3]
[368446852,1751181061227,-2548.4,0.00028288,3]
[368446853,1751181061236,-5032.03,0.00028288,3]
[368446854,1751181061246,-1891.7,0.00028288,3]
[368446855,1751181061255,-1902.99,0.00028288,3]
[368446856,1751181061265,-3831.53,0.00028288,3]
[368446857,1751181061274,-1988.32,0.00028288,3]
[368446858,1751181061285,-2741.63,0.00028288,3]
[368446859,1751181061294,-1541.56,0.00028288,3]
[368446860,1751181061304,-1919.44,0.00028288,3]
[368446861,1751181061314,-1486.54,0.00028288,3]
[368446862,1751181061323,-5783.78,0.00028288,3]
[368446863,1751181061333,-1407.96,0.00028288,3]
[368446864,1751181061342,-4393.57,0.00028288,3]
[368446865,1751181061351,-6288.52,0.00028288,3]
[368446866,1751181061360,-1854.51,0.00028288,3]
[368446867,1751181061369,-3441.21,0.00028288,3]
[368446868,1751181061379,-2454.2,0.00028288,3]
[368446869,1751181061387,-4755.41,0.00028288,3]
[368446870,1751181061397,-2837.89,0.00028288,3]
[368446871,1751181061406,-3072.45,0.00028288,3]
[368446872,1751181061416,-2609.19,0.00028288,3]
[368446873,1751181061424,-5015.28,0.00028288,3]
[368446874,1751181061433,-31171.34,0.00028288,3]
[368446875,1751181061443,-240.0,0.000283,2]
[368446876,1751181061452,-513.88493317,0.00028321,2]
[368446877,1751181061461,-1010.93950103,0.00028321,5]
[368446878,1751181061471,-503.04048633,0.00028321,5]
[368446879,1751181061479,-1002.3980493,0.00028321,5]
[368446880,1751181061489,-1000.0,0.00028321,5]
[368446881,1751181061498,-1000.0,0.00028321,5]
[368446882,1751181061508,-300.0,0.00028321,2]
[368446883,1751181061517,-200.0,0.00028331,2]
[368446884,1751181061527,-300.0,0.00028332,2]
[368446885,1751181061536,-150.0,0.00028361,2]
[368446886,1751181061545,-3820.56583955,0.00028361,2]
[368446887,1751181061555,-4823.83546225,0.00028377,2]
[368446888,1751181061565,-1000.0,0.00028379,2]
[368446889,1751181061574,-167.36016629,0.00028391,2]
[368446890,1751181061584,-19916.21,0.000284,2]
[368446891,1751181061593,-490.0,0.0002843,3]
[368446892,1751181061603,-490.0,0.0002843,3]
[368446893,1751181061612,-2063.22,0.0002843,3]
[368446894,1751181061622,-799.81,0.0002843,3]
[368446895,1751181061631,-766.49,0.0002843,3]
[368446896,1751181061641,-783.25,0.0002843,3]
[368446897,1751181061651,-490.0,0.0002843,2]
[368446898,1751181061661,-2543.91,0.0002843,3]
[368446899,1751181061671,-2445.49,0.0002843,3]
[368446900,1751181061774,-300.6505408,0.0002844,3]
[368446901,1751181061784,-627.39,0.0002844,3]
[368446902,1751181061795,-490.0,0.0002844,3]
[368446903,1751181061805,-666.43,0.0002844,3]
[368446904,1751181061815,-490.0,0.0002844,3]
[368446905,1751181061825,-1179.71,0.0002844,3]
[368446906,1751181061834,-1127.86,0.0002844,3]
[368446907,1751181061844,-490.0,0.0002844,3]
[368446908,1751181061854,-2384.25,0.0002844,3]
[368446909,1751181061863,-490.0,0.0002844,3]
[368446910,1751181061873,-2772.72,0.0002844,3]
[368446911,1751181061883,-1790.57,0.0002844,3]
[368446912,1751181061893,-2653.14,0.0002844,3]
[368446913,1751181061903,-617.2,0.0002844,3]
[368446914,1751181061912,-5689.33,0.0002844,3]
[368446915,1751181061922,-547.53,0.0002844,3]
[368446916,1751181061933,-2146.56,0.0002844,3]
[368446917,1751181061943,-2565.06,0.0002844,3]
[368446918,1751181061953,-490.0,0.0002844,3]
[368446919,1751181061963,-2324.81,0.0002844,3]
[368446920,1751181061973,-1800.06,0.0002844,3]
[368446921,1751181061983,-490.0,0.0002844,3]
[368446922,1751181061992,-3128.99,0.0002844,3]
[368446923,1751181062002,-490.0,0.0002844,3]
[368446924,1751181062011,-490.0,0.0002844,3]
[368446925,1751181062020,-919.72,0.0002844,3]
[368446926,1751181062030,-1021.02,0.0002844,3]
[368446927,1751181062040,-939.09,0.0002844,3]
[368446928,1751181062049,-8220.45,0.0002844,3]
[368446929,1751181062060,-202.22,0.00028444,2]
[368446930,1751181062069,-717.358797,0.00028454,2]
[368446931,1751181062078,-500.0,0.00028464,3]
[368446932,1751181062088,-762.48,0.00028464,3]
[368446933,1751181062097,-676.38,0.00028465,3]
[368446934,1751181062107,-522.1001005,0.00028465,3]
[368446935,1751181062116,-1121.17,0.00028465,3]
[368446936,1751181062125,-490.0,0.00028465,3]
[368446937,1751181062134,-490.0,0.00028465,3]
[368446938,1751181062143,-490.0,0.00028465,3]
[368446939,1751181062153,-1300.4,0.00028465,3]
[368446940,1751181062162,-480.00538066,0.00028465,3]
[368446941,1751181062172,-894.8,0.00028465,3]
[368446942,1751181062181,-490.0,0.00028465,3]
[368446943,1751181062191,-749.11,0.00028465,3]
[368446944,1751181062200,-490.0,0.00028465,3]
[368446945,1751181062209,-490.0,0.00028465,3]
[368446946,1751181062218,-490.0,0.00028465,3]
[368446947,1751181062227,-1356.45,0.00028465,3]
[368446948,1751181062236,-693.5,0.00028465,3]
[368446949,1751181062245,-490.0,0.00028465,3]
[368446950,1751181062254,-490.0,0.00028465,3]
[368446951,1751181062264,-214.56880837,0.00028465,3]
[368446952,1751181062273,-490.0,0.00028465,3]
[368446953,1751181062283,-490.0,0.00028465,3]
[368446954,1751181062292,-719.71,0.00028465,3]
[368446955,1751181062301,-490.0,0.00028465,3]
[368446956,1751181062311,-490.0,0.00028465,3]
[368446957,1751181062320,-1135.27,0.00028465,3]
[368446958,1751181062329,-490.0,0.00028465,3]
[368446959,1751181062338,-490.0,0.00028465,3]
[368446960,1751181062347,-2466.03,0.00028465,3]
[368446961,1751181062360,-1669.75,0.00028465,3]
[368446962,1751181062369,-2350.83,0.00028465,3]
[368446963,1751181062379,-2500.0,0.00028465,3]
[368446964,1751181062388,-1565.47,0.00028465,3]
[368446965,1751181062400,-958.6,0.00028465,3]
[368446966,1751181062409,-1401.48,0.00028465,3]
[368446967,1751181062418,-490.0,0.00028465,3]
[368446968,1751181062429,-2106.39,0.00028465,3]
[368446969,1751181062438,-2149.0,0.00028465,3]
[368446970,1751181062447,-1359.04,0.00028465,3]
[368446971,1751181062456,-490.0,0.00028465,3]
[368446972,1751181062465,-1441.71,0.00028465,3]
[368446973,1751181062474,-490.0,0.00028465,3]
[368446974,1751181062483,-490.0,0.00028465,3]
[368446975,1751181062492,-490.0,0.00028465,3]
[368446976,1751181062501,-1555.53,0.00028465,3]
[368446977,1751181062510,-490.0,0.00028465,3]
[368446978,1751181062519,-2377.85,0.00028465,3]
[368446979,1751181062529,-2656.87,0.00028465,3]
[368446980,1751181062539,-1261.03,0.00028465,3]
[368446981,1751181062548,-490.0,0.00028465,3]
[368446982,1751181062558,-952.81,0.00028465,3]
[368446983,1751181062567,-490.0,0.00028465,3]
[368446984,1751181062577,-3230.8,0.00028465,3]
[368446985,1751181062588,-1975.34,0.00028465,3]
[368446986,1751181062599,-2776.11,0.00028465,3]
[368446987,1751181062611,-490.0,0.00028465,3]
[368446988,1751181062622,-522.99,0.00028465,3]
[368446989,1751181062633,-490.0,0.00028465,3]
[368446990,1751181062644,-1637.84,0.00028465,3]
[368446991,1751181062655,-2509.9,0.00028465,3]
[368446992,1751181062665,-2268.63,0.00028465,3]
[368446993,1751181062675,-16964.16,0.00028465,3]
[368446994,1751181062686,-8060.69,0.00028465,3]
[368446995,1751181062695,-2193.85,0.00028465,3]
[368446996,1751181062705,-5923.87,0.00028465,3]
[368446997,1751181062713,-7095.95,0.00028465,3]
[368446998,1751181062723,-490.0,0.00028465,3]
[368446999,1751181062732,-498.29,0.00028465,3]
[368447000,1751181062742,-490.0,0.00028465,3]
[368447001,1751181062752,-15179.59,0.00028465,3]
[368447002,1751181062761,-1132.08,0.00028465,3]
[368447003,1751181062771,-4853.88,0.00028465,3]
[368447004,1751181062781,-2214.68,0.00028465,3]
[368447005,1751181062790,-2818.58,0.00028465,3]
[368447006,1751181062799,-490.0,0.00028465,3]
[368447007,1751181062808,-2551.51,0.00028465,3]
[368447008,1751181062818,-3146.0,0.00028465,3]
[368447009,1751181062828,-1972.27,0.00028465,3]
[368447010,1751181062837,-6654.93,0.00028465,3]
[368447011,1751181062847,-655.7,0.00028465,3]
[368447012,1751181062856,-773.41,0.00028465,3]
[368447013,1751181062866,-9948.76,0.00028465,3]
[368447014,1751181062876,-1986.91,0.00028465,3]
[368447015,1751181062885,-2446.99,0.00028465,3]
[368447016,1751181062895,-6259.14,0.00028465,3]
[368447017,1751181062904,-2006.97,0.00028465,3]
[368447018,1751181062913,-1895.51,0.00028465,3]
[368447019,1751181062923,-677.85,0.00028465,3]
[368447020,1751181062933,-650.26,0.00028465,3]
[368447021,1751181062943,-2282.03,0.00028465,3]
[368447022,1751181062952,-3418.63,0.00028465,3]
[368447023,1751181062962,-3064.55,0.00028465,3]
[368447024,1751181062971,-2043.99,0.00028465,3]
[368447025,1751181062981,-3853.32,0.00028465,3]
[368447026,1751181062990,-1656.61,0.00028465,3]
[368447027,1751181062999,-5859.61,0.00028465,3]
[368447028,1751181063008,-1440.13,0.00028465,3]
[368447029,1751181063018,-2724.72,0.00028465,3]
[368447030,1751181063027,-1512.8,0.00028465,3]
[368447031,1751181063036,-490.0,0.00028465,3]
[368447032,1751181063045,-1955.67,0.00028465,3]